bitfinex-derivatives/quotes_BTCF0:USTF0_20241022
["timestamp","ask_amount","ask_price","bid_price","bid_amount"]
[1729574304179,0.073965,67623.0,67622.0,0.56005838]
[1729574304982,0.073965,67623.0,67622.0,0.46141292]
[1729574305275,0.073965,67623.0,67622.0,0.56004468]
[1729574305480,0.073965,67623.0,67622.0,0.46141292]
[1729574306171,0.077965,67623.0,67622.0,0.56006942]
[1729574306583,0.082965,67623.0,67622.0,0.56006942]
[1729574307592,0.082965,67623.0,67622.0,0.38780516]
[1729574310889,0.082965,67623.0,67622.0,0.02700516]
[1729574311186,0.009,67623.0,67619.0,0.073969]
[1729574311386,0.11,67620.0,67619.0,0.073969]
[1729574312390,0.183968,67620.0,67619.0,0.073969]
[1729574312784,0.185968,67620.0,67619.0,0.10105756]
[1729574313693,0.186968,67620.0,67619.0,0.10105756]
[1729574314389,0.076968,67620.0,67619.0,0.10105756]
[1729574314693,0.076968,67620.0,67619.0,0.199733]
[1729574315397,0.076968,67620.0,67619.0,0.10105756]
[1729574315587,0.076968,67620.0,67619.0,0.21105756]
[1729574316094,0.076968,67620.0,67619.0,0.57185756]
[1729574316285,0.076968,67620.0,67619.0,0.39814096]
[1729574316595,0.076968,67620.0,67619.0,0.75894096]
[1729574317403,0.003,67620.0,67619.0,0.75894096]
[1729574317694,0.003,67620.0,67619.0,0.67053989]
[1729574319799,0.003,67620.0,67619.0,0.75892937]
[1729574320394,0.003,67620.0,67619.0,0.67053989]
[1729574322090,0.003,67620.0,67619.0,0.57185756]
[1729574330199,0.003,67620.0,67619.0,0.78846316]
[1729574331103,0.003,67620.0,67619.0,0.67846316]
[1729574332304,0.076968,67620.0,67619.0,0.67846316]
[1729574332701,0.076968,67620.0,67619.0,0.67862041]
[1729574339011,0.076968,67620.0,67619.0,0.31782041]
[1729574344911,0.076968,67620.0,67619.0,0.21445439]
[1729574345105,0.076968,67620.0,67619.0,0.10105756]
[1729574345807,0.076968,67620.0,67619.0,0.02708856]
[1729574346010,0.07397,67618.0,67617.0,0.07397]
[1729574348019,0.07597,67618.0,67617.0,0.07397]
[1729574349110,0.07797,67618.0,67617.0,0.07397]
[1729574352123,0.07797,67618.0,67617.0,0.29112508]
[1729574356723,0.07797,67618.0,67617.0,0.17303883]
[1729574357310,0.07797,67618.0,67617.0,0.29118605]
[1729574357516,0.07797,67618.0,67617.0,0.17303883]
[1729574360730,0.07797,67618.0,67617.0,0.17306486]
[1729574365531,0.07797,67618.0,67617.0,0.29118014]
[1729574367123,0.07797,67618.0,67617.0,0.07397]
[1729574372922,0.394144,67643.0,67617.0,0.07397]
[1729574372923,0.073947,67641.0,67625.0,0.073962]
[1729574373122,0.4708,67650.0,67640.0,0.11]
[1729574373330,0.4708,67650.0,67633.0,0.3608]
[1729574373331,0.07615916,67645.0,67644.0,0.073942]
[1729574373631,0.07615916,67645.0,67642.0,0.11]
[1729574373632,0.11221816,67645.0,67642.0,0.11]
[1729574373825,0.183943,67643.0,67640.0,0.073946]
[1729574374223,0.00221816,67645.0,67644.0,0.073942]
[1729574374425,0.11221816,67645.0,67644.0,0.183942]
[1729574375631,0.11221816,67645.0,67644.0,0.073942]
[1729574376630,0.00221816,67645.0,67644.0,0.078942]
[1729574376826,0.11221816,67645.0,67644.0,0.078942]
[1729574377527,0.11221816,67645.0,67644.0,0.082942]
[1729574377837,0.11221816,67645.0,67644.0,0.10964268]
[1729574378628,0.11221816,67645.0,67644.0,0.21964268]
[1729574380431,0.18615916,67645.0,67644.0,0.03570068]
[1729574383731,0.18615916,67645.0,67644.0,0.14570068]
[1729574388440,0.07615916,67645.0,67644.0,0.14570068]
[1729574401147,0.073941,67645.0,67644.0,0.14570068]
[1729574401550,0.1103671,67645.0,67644.0,0.14570068]
[1729574401954,0.073941,67645.0,67644.0,0.14570068]
[1729574402449,0.11048279,67645.0,67644.0,0.14570068]
[1729574403148,0.16279467,67662.0,67648.0,0.073937]
[1729574403350,0.073932,67653.0,67649.0,0.183936]
[1729574403542,0.03693297,67652.0,67649.0,0.183936]
[1729574403744,0.03693297,67652.0,67651.0,0.073934]
[1729574404356,0.03693297,67652.0,67651.0,0.183934]
[1729574404745,0.004,67653.0,67651.0,0.183934]
[1729574405151,0.3608,67657.0,67651.0,0.183934]
[1729574405152,0.003,67652.0,67651.0,0.183934]
[1729574406659,0.007,67653.0,67651.0,0.183934]
[1729574406854,0.004,67653.0,67651.0,0.183934]
[1729574407057,0.002,67652.0,67651.0,0.183934]
[1729574407254,0.005,67652.0,67651.0,0.183934]
[1729574407961,0.002,67652.0,67651.0,0.183934]
[1729574408357,0.004,67653.0,67651.0,0.183934]
[1729574408555,0.007,67653.0,67651.0,0.183934]
[1729574409061,0.007,67653.0,67652.0,0.04411088]
[1729574409251,0.002,67652.0,67651.0,0.25451818]
[1729574409663,0.002,67652.0,67651.0,0.2104073]
[1729574409664,0.005,67652.0,67651.0,0.2104073]
[1729574410162,0.007,67653.0,67651.0,0.2104073]
[1729574410362,0.007,67653.0,67652.0,0.11]
[1729574410764,0.003,67653.0,67652.0,0.11]
[1729574411360,0.007,67653.0,67652.0,0.11]
[1729574411865,0.004,67653.0,67652.0,0.11]
[1729574412565,0.007,67653.0,67652.0,0.15409685]
[1729574412763,0.007,67653.0,67652.0,0.11]
[1729574413363,0.003,67653.0,67651.0,0.0264733]
[1729574413564,0.22,67652.0,67637.0,0.00221757]
[1729574413774,0.073943,67643.0,67642.0,0.10324]
[1729574414258,0.073939,67647.0,67642.0,0.10324]
[1729574414458,0.07394,67646.0,67642.0,0.10324]
[1729574415069,0.07394,67646.0,67645.0,0.11]
[1729574415763,0.11015705,67646.0,67645.0,0.11]
[1729574416868,0.11015705,67646.0,67645.0,0.117]
[1729574417761,0.11015705,67646.0,67645.0,0.007]
[1729574417762,0.07394,67646.0,67645.0,0.007]
[1729574418873,0.51742,67646.0,67645.0,0.007]
[1729574419080,0.07394,67646.0,67645.0,0.007]
[1729574420571,0.07394,67646.0,67645.0,0.05111302]
[1729574421373,0.07394,67646.0,67645.0,0.16111302]
[1729574421879,0.07394,67646.0,67645.0,0.117]
[1729574423576,0.07394,67646.0,67645.0,0.007]
[1729574431184,0.18394,67646.0,67645.0,0.007]
[1729574432278,0.073948,67638.0,67637.0,0.00221757]
[1729574432480,0.544748,67638.0,67637.0,0.00221757]
[1729574433486,0.545748,67638.0,67637.0,0.01321757]
[1729574433784,0.436748,67638.0,67637.0,0.02021757]
[1729574434380,0.546748,67638.0,67637.0,0.02021757]
[1729574434576,0.436748,67638.0,67637.0,0.02021757]
[1729574434785,0.546748,67638.0,67637.0,0.02021757]
[1729574434980,0.436748,67638.0,67637.0,0.02021757]
[1729574435677,0.546748,67638.0,67637.0,0.02021757]
[1729574435886,0.436748,67638.0,67637.0,0.02021757]
[1729574436082,0.546748,67638.0,67637.0,0.02021757]
[1729574438184,0.436748,67638.0,67637.0,0.02021757]
[1729574438386,0.546748,67638.0,67637.0,0.02021757]
[1729574438983,0.073958,67629.0,67628.0,0.02654178]
[1729574439175,0.073959,67628.0,67627.0,0.11]
[1729574441081,0.083959,67628.0,67627.0,0.111]
[1729574442183,0.094959,67628.0,67627.0,0.111]
[1729574442678,0.021,67628.0,67627.0,0.18496]
[1729574442885,0.021,67628.0,67627.0,0.21148481]
[1729574447489,0.021,67628.0,67627.0,0.38643347]
[1729574447880,0.021,67628.0,67627.0,0.31310283]
[1729574448085,0.021,67628.0,67627.0,0.38661117]
[1729574448889,0.021,67628.0,67627.0,0.38657451]
[1729574449487,0.021,67628.0,67627.0,0.31306617]
[1729574451989,0.094959,67628.0,67627.0,0.31306617]
[1729574454294,0.021,67628.0,67627.0,0.31306617]
[1729574455596,0.094959,67628.0,67627.0,0.31306617]
[1729574456092,0.094959,67628.0,67627.0,0.12910617]
[1729574456291,0.094959,67628.0,67627.0,0.23910617]
[1729574457387,0.094959,67628.0,67627.0,0.31306617]
[1729574457895,0.094959,67628.0,67627.0,0.21148481]
[1729574462397,0.021,67628.0,67627.0,0.21148481]
[1729574464899,0.021,67628.0,67627.0,0.31311352]
[1729574466797,0.021,67628.0,67627.0,0.31311135]
[1729574469508,0.094959,67628.0,67627.0,0.31311135]
[1729574470799,0.204959,67628.0,67627.0,0.12915135]
[1729574471700,0.094959,67628.0,67627.0,0.12915135]
[1729574471901,0.094959,67628.0,67627.0,0.10262654]
[1729574471902,0.314959,67628.0,67627.0,0.10262654]
[1729574472102,0.073962,67626.0,67605.0,0.216684]
[1729574472304,0.11,67607.0,67606.0,0.2245247]
[1729574472503,0.11,67607.0,67606.0,0.10243094]
[1729574472710,0.073981,67608.0,67606.0,0.21243094]
[1729574473010,0.073981,67608.0,67606.0,0.11]
[1729574474421,0.001,67607.0,67606.0,0.11]
[1729574474900,0.073981,67608.0,67606.0,0.11]
[1729574475710,0.074982,67607.0,67606.0,0.11]
[1729574477207,0.073982,67607.0,67606.0,0.11]
[1729574478110,0.093982,67607.0,67606.0,0.11]
[1729574480009,0.02,67607.0,67606.0,0.21080583]
[1729574480606,0.093982,67607.0,67606.0,0.21080583]
[1729574480809,0.02,67607.0,67606.0,0.28478883]
[1729574481309,0.073978,67611.0,67609.0,0.07398]
[1729574481514,0.073978,67611.0,67610.0,0.21080583]
[1729574483727,0.073978,67611.0,67610.0,0.21280583]
[1729574483925,0.073978,67611.0,67610.0,0.21580583]
[1729574485012,0.073978,67611.0,67610.0,0.10580583]
[1729574485215,0.183978,67611.0,67610.0,0.10580583]
[1729574485416,0.293978,67611.0,67610.0,0.10580583]
[1729574485614,0.293978,67611.0,67610.0,0.005]
[1729574485615,0.073978,67611.0,67610.0,0.005]
[1729574485811,0.183978,67611.0,67610.0,0.005]
[1729574486212,0.183978,67611.0,67610.0,0.105415]
[1729574486929,0.183978,67611.0,67610.0,0.10534522]
[1729574487227,0.183978,67611.0,67610.0,0.005]
[1729574487423,0.183978,67611.0,67610.0,0.10535075]
[1729574487827,0.183978,67611.0,67610.0,0.21535075]
[1729574488033,0.183978,67611.0,67610.0,0.115]
[1729574490622,0.183978,67611.0,67610.0,0.005]
[1729574491930,0.183978,67611.0,67610.0,0.115]
[1729574496531,0.183978,67611.0,67610.0,0.005]
[1729574498436,0.183978,67611.0,67610.0,0.10555938]
[1729574499031,0.183978,67611.0,67610.0,0.10556633]
[1729574499231,0.183978,67611.0,67610.0,0.005]
[1729574499434,0.073974,67615.0,67614.0,0.073974]
[1729574499627,0.073974,67615.0,67614.0,0.183974]
[1729574499828,0.3608,67616.0,67615.0,0.073974]
[1729574501442,0.3618,67616.0,67615.0,0.081974]
[1729574501946,0.001,67616.0,67615.0,0.081974]
[1729574502442,0.002,67616.0,67615.0,0.084974]
[1729574502935,0.075972,67616.0,67615.0,0.084974]
[1729574503135,0.075972,67616.0,67615.0,0.11175977]
[1729574503439,0.075972,67616.0,67615.0,0.22175977]
[1729574506043,0.075972,67616.0,67615.0,0.28068066]
[1729574506242,0.075972,67616.0,67615.0,0.22175977]
[1729574506834,0.002,67616.0,67615.0,0.22175977]
[1729574509337,0.002,67616.0,67615.0,0.26591204]
[1729574509541,0.002,67616.0,67615.0,0.22175977]
[1729574510342,0.002,67616.0,67615.0,0.32218603]
[1729574512250,0.3608,67628.0,67622.0,0.073966]
[1729574512440,0.07396,67627.0,67622.0,0.293966]
[1729574512639,0.07396,67627.0,67622.0,0.39411383]
[1729574513336,0.3608,67630.0,67622.0,0.35760649]
[1729574513643,0.00421854,67623.0,67622.0,0.36760649]
[1729574513842,0.00421854,67623.0,67622.0,0.36753554]
[1729574514143,0.00421854,67623.0,67622.0,0.193966]
[1729574514651,0.00421854,67623.0,67622.0,0.194966]
[1729574515249,0.07818354,67623.0,67622.0,0.084966]
[1729574515441,0.07818354,67623.0,67622.0,0.194966]
[1729574516743,0.07818354,67623.0,67622.0,0.22194381]
[1729574519953,0.07818354,67623.0,67622.0,0.03797781]
[1729574520139,0.18818354,67623.0,67622.0,0.03797781]
[1729574526552,0.18818354,67623.0,67622.0,0.03397781]
[1729574528070,0.07818354,67623.0,67622.0,0.14397781]
[1729574528855,0.18818354,67623.0,67622.0,0.14397781]
[1729574529755,0.18818354,67623.0,67622.0,0.03397781]
[1729574531661,0.18818354,67623.0,67622.0,0.14397781]
[1729574532654,0.18818354,67623.0,67622.0,0.20284101]
[1729574533270,0.18818354,67623.0,67622.0,0.09284101]
[1729574535962,0.18818354,67623.0,67622.0,0.03397781]
[1729574536163,0.18818354,67623.0,67622.0,0.09284639]
[1729574536559,0.18818354,67623.0,67622.0,0.03397781]
[1729574539355,0.18818354,67623.0,67622.0,0.09285224]
[1729574539759,0.18818354,67623.0,67622.0,0.03397781]
[1729574542063,0.18818354,67623.0,67620.0,0.05887211]
[1729574542364,0.073967,67621.0,67620.0,0.05887211]
[1729574543267,0.073967,67621.0,67620.0,0.06387211]
[1729574543474,0.073967,67621.0,67620.0,0.06787211]
[1729574543768,0.073967,67621.0,67620.0,0.09479502]
[1729574543963,0.074967,67621.0,67620.0,0.09479502]
[1729574544662,0.074967,67621.0,67620.0,0.09480937]
[1729574544866,0.074967,67621.0,67620.0,0.09080937]
[1729574545063,0.075967,67621.0,67620.0,0.09080937]
[1729574545661,0.075967,67621.0,67620.0,0.03192291]
[1729574546563,0.075967,67621.0,67620.0,0.09081802]
[1729574547566,0.075967,67621.0,67620.0,0.03192291]
[1729574555480,0.075967,67621.0,67620.0,0.10541557]
[1729574555667,0.075967,67621.0,67620.0,0.13267483]
[1729574555873,0.075967,67621.0,67620.0,0.10556879]
[1729574556581,0.075967,67621.0,67620.0,0.10556955]
[1729574557372,0.075967,67621.0,67620.0,0.09756955]
[1729574558578,0.075967,67621.0,67620.0,0.02392291]
[1729574559385,0.075967,67621.0,67620.0,0.09756955]
[1729574561882,0.075967,67621.0,67620.0,0.19831706]
[1729574562184,0.075967,67621.0,67620.0,0.09756955]
[1729574562575,0.075967,67621.0,67620.0,0.02392291]
[1729574562775,0.436767,67621.0,67620.0,0.02392291]
[1729574562972,0.002,67621.0,67620.0,0.09789091]
[1729574563182,0.002,67621.0,67620.0,0.31789091]
[1729574563483,0.002,67621.0,67620.0,0.20789091]
[1729574567882,0.075967,67621.0,67620.0,0.02392291]
[1729574570289,0.075967,67621.0,67620.0,0.13392291]
[1729574571382,0.075967,67621.0,67620.0,0.20789091]
[1729574572789,0.075967,67621.0,67620.0,0.19989091]
[1729574574002,0.075967,67621.0,67620.0,0.25873232]
[1729574574203,0.075967,67621.0,67620.0,0.19989091]
[1729574576103,0.075967,67621.0,67620.0,0.25872761]
[1729574576298,0.075967,67621.0,67620.0,0.19989091]
[1729574582307,0.075967,67621.0,67620.0,0.08989091]
[1729574583301,0.075967,67621.0,67620.0,0.01592291]
[1729574583497,0.436767,67621.0,67620.0,0.01592291]
[1729574588204,0.436767,67621.0,67620.0,0.01392291]
[1729574591314,0.436767,67621.0,67620.0,0.08756955]
[1729574592117,0.436767,67621.0,67620.0,0.01392291]
[1729574596010,0.075967,67621.0,67620.0,0.01392291]
[1729574600626,0.075967,67621.0,67620.0,0.20288761]
[1729574601038,0.075967,67621.0,67620.0,0.11450628]
[1729574602525,0.075967,67621.0,67620.0,0.20288761]
[1729574602731,0.075967,67621.0,67620.0,0.10230424]
[1729574602935,0.075967,67621.0,67620.0,0.11450676]
[1729574603540,0.075967,67621.0,67620.0,0.10650676]
[1729574606539,0.075967,67621.0,67620.0,0.19488809]
[1729574606744,0.075967,67621.0,67620.0,0.10650676]
[1729574607538,0.075967,67621.0,67620.0,0.00592291]
[1729574609541,0.075967,67621.0,67620.0,0.07955851]
[1729574609944,0.436767,67621.0,67620.0,0.00592291]
[1729574610243,0.436767,67621.0,67620.0,0.05011429]
[1729574610448,0.436767,67621.0,67620.0,0.00592291]
[1729574610939,0.880407,67621.0,67620.0,0.005]
[1729574611139,0.880407,67621.0,67619.0,0.04419138]
[1729574611140,0.44364,67620.0,67617.0,0.04419854]
[1729574611335,0.44364,67620.0,67612.0,0.05891753]
[1729574611336,0.073976,67613.0,67612.0,0.05891753]
[1729574611536,0.073976,67613.0,67611.0,0.05891753]
[1729574611537,0.073977,67612.0,67611.0,0.05891753]
[1729574611741,0.183977,67612.0,67611.0,0.05891753]
[1729574612244,0.073978,67611.0,67610.0,0.05891753]
[1729574612440,0.183978,67611.0,67610.0,0.05891753]
[1729574613542,0.194978,67611.0,67610.0,0.05891753]
[1729574614242,0.121,67611.0,67609.0,0.05891753]
[1729574614545,0.183979,67610.0,67609.0,0.05891753]
[1729574615743,0.183979,67610.0,67606.0,0.38944568]
[1729574615744,0.073982,67607.0,67606.0,0.38944568]
[1729574615944,0.183982,67607.0,67606.0,0.38944568]
[1729574617746,0.192982,67607.0,67606.0,0.38944568]
[1729574617954,0.199982,67607.0,67606.0,0.38944568]
[1729574621257,0.199982,67607.0,67606.0,0.49944568]
[1729574622659,0.199982,67607.0,67606.0,0.59991601]
[1729574628462,0.089982,67607.0,67606.0,0.67389901]
[1729574630660,0.089982,67607.0,67606.0,0.57342868]
[1729574631154,0.089982,67607.0,67606.0,0.49944568]
[1729574631667,0.089982,67607.0,67606.0,0.57342868]
[1729574637673,0.089982,67607.0,67606.0,0.67394901]
[1729574638274,0.089982,67607.0,67606.0,0.76233034]
[1729574638871,0.089982,67607.0,67606.0,0.67394901]
[1729574640177,0.089982,67607.0,67606.0,0.79381751]
[1729574640670,0.089982,67607.0,67606.0,0.71983451]
[1729574640867,0.089982,67607.0,67606.0,0.68381751]
[1729574642084,0.089982,67607.0,67606.0,0.79381751]
[1729574642085,0.016,67607.0,67606.0,0.79381751]
[1729574642276,0.016,67607.0,67606.0,0.67394901]
[1729574642574,0.073974,67615.0,67614.0,0.073975]
[1729574642775,0.073974,67615.0,67614.0,0.17449533]
[1729574643571,0.073971,67618.0,67617.0,0.07397]
[1729574643783,0.073971,67618.0,67617.0,0.28449033]
[1729574645272,0.073971,67618.0,67617.0,0.29019394]
[1729574645472,0.074971,67618.0,67617.0,0.29019394]
[1729574645681,0.074971,67618.0,67617.0,0.18997]
[1729574645986,0.075971,67618.0,67617.0,0.19597]
[1729574646879,0.002,67618.0,67617.0,0.19597]
[1729574649885,0.002,67618.0,67617.0,0.08597]
[1729574650090,0.07597,67618.0,67617.0,0.19597]
[1729574653296,0.07597,67618.0,67617.0,0.25469274]
[1729574653595,0.07597,67618.0,67617.0,0.19597]
[1729574654281,0.07597,67618.0,67617.0,0.25469102]
[1729574656381,0.07597,67618.0,67617.0,0.19597]
[1729574656885,0.07597,67618.0,67617.0,0.25468513]
[1729574658085,0.002,67618.0,67617.0,0.25468513]
[1729574658299,0.002,67618.0,67617.0,0.19597]
[1729574659288,0.002,67618.0,67617.0,0.25468539]
[1729574659486,0.002,67618.0,67617.0,0.19597]
[1729574659692,0.002,67618.0,67617.0,0.25468601]
[1729574660094,0.07597,67618.0,67617.0,0.07071655]
[1729574660291,0.07597,67618.0,67617.0,0.122]
[1729574664298,0.07597,67618.0,67617.0,0.195971]
[1729574666292,0.07597,67618.0,67617.0,0.085971]
[1729574666493,0.07597,67618.0,67617.0,0.195971]
[1729574674504,0.002,67618.0,67617.0,0.195971]
[1729574675801,0.002,67618.0,67617.0,0.29577529]
[1729574678206,0.002,67618.0,67617.0,0.18577529]
[1729574678411,0.07597,67618.0,67617.0,0.29577529]
[1729574680408,0.07597,67618.0,67617.0,0.29588797]
[1729574689224,0.07597,67618.0,67617.0,0.38400648]
[1729574689225,0.002,67618.0,67617.0,0.38400648]
[1729574689813,0.002,67618.0,67617.0,0.195971]
[1729574692420,0.07597,67618.0,67617.0,0.195971]
[1729574692917,0.002,67618.0,67617.0,0.195971]
[1729574697921,0.002,67618.0,67617.0,0.38399826]
[1729574698524,0.002,67618.0,67617.0,0.29578303]
[1729574699226,0.002,67618.0,67617.0,0.38399826]
[1729574701224,0.002,67618.0,67617.0,0.29578303]
[1729574701625,0.002,67618.0,67617.0,0.38399826]
[1729574702431,0.002,67618.0,67617.0,0.29578303]
[1729574702930,0.002,67618.0,67617.0,0.38399826]
[1729574703928,0.002,67618.0,67617.0,0.38404075]
[1729574704634,0.002,67618.0,67617.0,0.29578303]
[1729574704822,0.002,67618.0,67617.0,0.195971]
[1729574712940,0.002,67618.0,67617.0,0.4150419]
[1729574713840,0.002,67618.0,67617.0,0.41506153]
[1729574715441,0.002,67618.0,67617.0,0.29591385]
[1729574717145,0.3608,67644.0,67623.0,0.073965]
[1729574717342,0.3608,67644.0,67634.0,0.073952]
[1729574717343,0.073952,67635.0,67634.0,0.073952]
[1729574717846,0.073952,67635.0,67634.0,0.17330437]
[1729574718336,0.11,67640.0,67638.0,0.073954]
[1729574718337,0.081958,67639.0,67638.0,0.073954]
[1729574718537,0.081958,67639.0,67638.0,0.183954]
[1729574719247,0.073958,67639.0,67638.0,0.24270015]
[1729574719439,0.073958,67639.0,67638.0,0.183954]
[1729574719638,0.073958,67639.0,67638.0,0.184954]
[1729574719936,0.073958,67639.0,67638.0,0.111]
[1729574720141,0.073958,67639.0,67638.0,0.113]
[1729574720464,0.073958,67639.0,67638.0,0.003]
[1729574721645,0.183958,67639.0,67638.0,0.003]
[1729574728056,0.073958,67639.0,67638.0,0.113]
[1729574729756,0.073958,67639.0,67638.0,0.003]
[1729574753683,0.073958,67639.0,67638.0,0.04711052]
[1729574754080,0.073958,67639.0,67638.0,0.003]
[1729574757084,0.073958,67639.0,67638.0,0.04712905]
[1729574757283,0.073958,67639.0,67638.0,0.04713143]
[1729574757882,0.073958,67639.0,67638.0,0.003]
[1729574758092,0.11189867,67639.0,67638.0,0.003]
[1729574758887,0.073958,67639.0,67638.0,0.003]
[1729574767700,0.073958,67639.0,67638.0,0.076956]
[1729574771194,0.073958,67639.0,67638.0,0.186956]
[1729574771701,0.073958,67639.0,67638.0,0.3598365]
[1729574772197,0.073958,67639.0,67638.0,0.35973594]
[1729574773097,0.073958,67639.0,67638.0,0.186956]
[1729574778500,0.073958,67639.0,67638.0,0.003]
[1729574778797,0.073958,67639.0,67638.0,0.186956]
[1729574781288,0.073958,67639.0,67638.0,0.24580133]
[1729574781694,0.073958,67639.0,67638.0,0.186956]
[1729574784399,0.073958,67639.0,67638.0,0.076956]
[1729574784695,0.073958,67639.0,67629.0,0.1214]
[1729574784696,0.737518,67639.0,67629.0,0.07355235]
[1729574784896,0.737518,67639.0,67626.0,0.14752135]
[1729574784897,0.073968,67627.0,67626.0,0.14752135]
[1729574785105,0.183968,67627.0,67626.0,0.073969]
[1729574785303,0.07397,67625.0,67624.0,0.07577058]
[1729574785491,0.18397,67625.0,67624.0,0.00221823]
[1729574785691,0.54477,67625.0,67624.0,0.02824113]
[1729574785910,0.43477,67625.0,67624.0,0.02824113]
[1729574786204,0.54477,67625.0,67624.0,0.02824113]
[1729574786403,0.54477,67625.0,67624.0,0.0260229]
[1729574786697,0.073974,67622.0,67619.0,0.183976]
[1729574786905,0.4708,67625.0,67619.0,0.183976]
[1729574786906,0.183975,67621.0,67619.0,0.21122463]
[1729574787203,0.073976,67620.0,67619.0,0.02724863]
[1729574787409,0.11,67621.0,67596.0,0.074001]
[1729574787410,0.073981,67615.0,67614.0,0.07355235]
[1729574787603,0.4708,67616.0,67612.0,0.183983]
[1729574787808,0.073983,67613.0,67612.0,0.183983]
[1729574788000,0.183983,67613.0,67612.0,0.183983]
[1729574788202,0.073983,67613.0,67612.0,0.183983]
[1729574788703,0.183983,67613.0,67612.0,0.183983]
[1729574789007,0.186983,67613.0,67612.0,0.183983]
[1729574789199,0.191983,67613.0,67612.0,0.183983]
[1729574790003,0.073986,67610.0,67609.0,0.02640661]
[1729574790199,0.11,67610.0,67608.0,0.11]
[1729574790397,0.11,67610.0,67605.0,0.2527]
[1729574790598,0.183991,67606.0,67605.0,0.2527]
[1729574791004,0.183991,67606.0,67605.0,0.326692]
[1729574791206,0.073991,67606.0,67605.0,0.35322118]
[1729574791604,0.183991,67606.0,67605.0,0.35322118]
[1729574791811,0.191991,67606.0,67605.0,0.35422118]
[1729574792004,0.197991,67606.0,67605.0,0.35522118]
[1729574793003,0.087991,67606.0,67605.0,0.35522118]
[1729574795007,0.087991,67606.0,67605.0,0.24522118]
[1729574795213,0.087991,67606.0,67605.0,0.35522118]
[1729574795711,0.197991,67606.0,67605.0,0.35522118]
[1729574797022,0.087991,67606.0,67605.0,0.35522118]
[1729574799108,0.448791,67606.0,67605.0,0.35522118]
[1729574799614,0.558791,67606.0,67605.0,0.28122918]
[1729574799799,0.448791,67606.0,67605.0,0.17122918]
[1729574800006,0.448791,67606.0,67605.0,0.35522118]
[1729574805115,0.448791,67606.0,67605.0,0.24522118]
[1729574805315,0.448791,67606.0,67605.0,0.35522118]
[1729574806128,0.448791,67606.0,67605.0,0.17122918]
[1729574806721,1.002551,67606.0,67596.0,0.08827018]
[1729574807017,0.434801,67597.0,67596.0,0.08827018]
[1729574807223,0.434801,67597.0,67596.0,0.074002]
[1729574808015,0.074002,67596.0,67592.0,0.074006]
[1729574808225,0.184005,67593.0,67592.0,0.184006]
[1729574809626,0.122,67593.0,67592.0,0.184006]
[1729574810731,0.196005,67593.0,67592.0,0.074006]
[1729574811735,0.196005,67593.0,67592.0,0.184006]
[1729574811934,0.196005,67593.0,67592.0,0.11]
[1729574812642,0.196005,67593.0,67592.0,0.184006]
[1729574812839,0.196005,67593.0,67592.0,0.074006]
[1729574813240,0.196005,67593.0,67592.0,0.184006]
[1729574816834,0.086005,67593.0,67592.0,0.184006]
[1729574817039,0.196005,67593.0,67592.0,0.184006]
[1729574819443,0.15156904,67593.0,67592.0,0.40075769]
[1729574820845,0.15156904,67593.0,67592.0,0.40017547]
[1729574825146,0.15156904,67593.0,67592.0,0.40018595]
[1729574825543,0.3608,67597.0,67592.0,0.21619076]
[1729574825748,0.3608,67597.0,67593.0,0.18693976]
[1729574825942,0.7216,67597.0,67586.0,0.00018084]
[1729574826139,0.184012,67587.0,67586.0,0.00018084]
[1729574826937,0.184012,67587.0,67586.0,0.0271522]
[1729574827138,0.294012,67587.0,67586.0,0.00018084]
[1729574827550,0.184012,67587.0,67586.0,0.00018084]
[1729574828044,0.185012,67587.0,67586.0,0.00218084]
[1729574828550,0.186012,67587.0,67586.0,0.00318084]
[1729574828747,0.185012,67587.0,67586.0,0.00118084]
[1729574829051,0.186012,67587.0,67586.0,0.00318084]
[1729574833948,0.186012,67587.0,67586.0,0.10190196]
[1729574834449,0.076012,67587.0,67586.0,0.28591496]
[1729574834654,0.076012,67587.0,67586.0,0.37423076]
[1729574834856,0.076012,67587.0,67586.0,0.28591496]
[1729574835154,0.002,67587.0,67586.0,0.28591496]
[1729574835660,0.002,67587.0,67586.0,0.40334734]
[1729574837854,0.002,67587.0,67586.0,0.28591496]
[1729574838955,0.002,67587.0,67586.0,0.40341221]
[1729574840951,0.002,67587.0,67586.0,0.18719384]
[1729574848361,0.002,67587.0,67586.0,0.26084654]
[1729574849061,0.002,67587.0,67586.0,0.28571926]
[1729574849261,0.002,67587.0,67586.0,0.28571933]
[1729574849961,0.002,67587.0,67586.0,0.17571933]
[1729574850167,0.002,67587.0,67586.0,0.37410257]
[1729574853473,0.002,67587.0,67586.0,0.28571933]
[1729574854776,0.002,67587.0,67586.0,0.37415188]
[1729574855575,0.002,67587.0,67586.0,0.37415675]
[1729574855877,0.002,67587.0,67586.0,0.27563126]
[1729574856075,0.002,67587.0,67586.0,0.18719384]
[1729574859786,0.076012,67587.0,67586.0,0.18719384]
[1729574864097,0.076012,67587.0,67586.0,0.37425513]
[1729574864489,0.076012,67587.0,67586.0,0.28581771]
[1729574865582,0.076012,67587.0,67586.0,0.17581771]
[1729574865892,0.076012,67587.0,67586.0,0.30034819]
[1729574866091,0.076012,67587.0,67586.0,0.21180471]
[1729574866292,0.076012,67587.0,67586.0,0.10180471]
[1729574866487,0.076012,67587.0,67586.0,0.21180471]
[1729574867182,0.076012,67587.0,67586.0,0.10180471]
[1729574867387,0.076012,67587.0,67586.0,0.21180471]
[1729574869193,0.076012,67587.0,67586.0,0.10207651]
[1729574869394,0.076012,67587.0,67586.0,0.21207651]
[1729574872198,0.076012,67587.0,67586.0,0.10207651]
[1729574872399,0.076012,67587.0,67586.0,0.21207651]
[1729574873601,0.076012,67587.0,67586.0,0.11318084]
[1729574874295,0.076012,67587.0,67586.0,0.18719384]